bitfinex/quotes_BTCUSD_20220111
["timestamp","ask_amount","ask_price","bid_price","bid_amount"]
[1641884174656,0.1,42035.0,42034.0,0.00447295]
[1641884175057,0.38927128,42035.0,42034.0,1.72354833]
[1641884175663,0.95193549,42035.0,42034.0,1.72354833]
[1641884175858,0.75193549,42035.0,42034.0,1.14766633]
[1641884176058,0.38927128,42035.0,42034.0,1.14766633]
[1641884176256,0.43657128,42035.0,42034.0,1.14766633]
[1641884176456,0.85190236,42035.0,42032.0,0.6067937]
[1641884176657,0.86790236,42035.0,42032.0,0.6067937]
[1641884177410,0.86790236,42035.0,42031.0,0.6067937]
[1641884177609,0.1,42032.0,42031.0,0.6067937]
[1641884177908,0.1,42032.0,42031.0,1.33904344]
[1641884178111,0.1,42032.0,42031.0,1.05013057]
[1641884178510,0.8427,42043.0,42031.0,1.05013057]
[1641884178511,0.8427,42043.0,42034.0,0.00082768]
[1641884178707,2.2129,42044.0,42034.0,0.93207736]
[1641884178708,0.9847,42044.0,42034.0,0.93207736]
[1641884178908,0.9847,42044.0,42043.0,0.4435369]
[1641884179108,0.2991,42049.0,42043.0,1.11380901]
[1641884179310,0.008,42049.0,42044.0,0.24900068]
[1641884179508,0.5767,42054.0,42043.0,1.11380901]
[1641884179509,0.5767,42054.0,42051.0,0.31631484]
[1641884179708,0.371974,42053.0,42051.0,0.31631484]
[1641884179909,0.059458,42054.0,42051.0,0.31631484]
[1641884180108,0.26833161,42053.0,42051.0,0.31631484]
[1641884180309,0.059458,42054.0,42052.0,0.35189935]
[1641884180508,1.39791889,42068.0,42052.0,0.35189935]
[1641884180509,0.118909,42061.0,42052.0,0.35189935]
[1641884180712,0.034,42053.0,42052.0,0.35189935]
[1641884181655,0.034,42053.0,42052.0,0.63087469]
[1641884181855,0.034,42053.0,42052.0,0.35189935]
[1641884182157,0.00085527,42055.0,42052.0,0.35189935]
[1641884182555,0.00085527,42055.0,42052.0,0.34689935]
[1641884182755,0.00885527,42055.0,42052.0,0.36089935]
[1641884183155,0.008,42055.0,42052.0,0.36089935]
[1641884183656,0.008,42055.0,42052.0,0.4208659]
[1641884183657,0.00020492,42054.0,42052.0,0.4208659]
[1641884183858,0.00020492,42054.0,42052.0,0.36141913]
[1641884184057,0.00020492,42054.0,42052.0,0.34741913]
[1641884184255,0.00020492,42054.0,42052.0,0.95410105]
[1641884184711,0.00020492,42054.0,42052.0,0.97010105]
[1641884184911,0.00020492,42054.0,42052.0,0.36341913]
[1641884185310,0.00020492,42054.0,42052.0,0.97010105]
[1641884186015,0.00020492,42054.0,42052.0,0.34741913]
[1641884186712,0.00020492,42054.0,42052.0,0.36341913]
[1641884187913,0.00020492,42054.0,42053.0,0.40200006]
[1641884188113,0.00020492,42054.0,42052.0,0.34741913]
[1641884188755,0.00020492,42054.0,42052.0,0.36341913]
[1641884189657,0.00020492,42054.0,42052.0,0.72004998]
[1641884190156,0.00020492,42054.0,42052.0,1.3107319]
[1641884190455,0.05965592,42054.0,42052.0,0.95410105]
[1641884190857,0.00020492,42054.0,42052.0,0.97010105]
[1641884191755,0.00020492,42054.0,42052.0,0.36341913]
[1641884191958,0.00020492,42054.0,42053.0,1.4823596]
[1641884192808,0.00020492,42054.0,42053.0,1.39654039]
[1641884193010,0.00020492,42054.0,42053.0,0.39657026]
[1641884193409,0.00020492,42054.0,42053.0,0.013]
[1641884193612,0.00051452,42054.0,42053.0,0.01351928]
[1641884193811,1.561e-05,42054.0,42053.0,0.01351928]
[1641884194011,1.561e-05,42054.0,42053.0,0.00051928]
[1641884194610,1.561e-05,42054.0,42053.0,0.37895051]
[1641884194814,0.059443,42067.0,42053.0,0.37895051]
[1641884194815,0.059437,42064.0,42053.0,0.08283928]
[1641884195012,6.0,42065.0,42054.0,0.38021542]
[1641884195212,6.0,42065.0,42055.0,0.0473]
[1641884195512,6.0,42065.0,42056.0,0.11885023]
[1641884195711,6.0,42065.0,42059.0,0.059429]
[1641884195955,6.0,42065.0,42061.0,0.0594204]
[1641884196161,6.0,42065.0,42062.0,0.0473]
[1641884196354,6.0,42065.0,42062.0,0.11477]
[1641884196556,0.118831,42084.0,42064.0,0.97269071]
[1641884196758,0.118831,42084.0,42065.0,0.0473]
[1641884196956,0.24875399,42081.0,42078.0,0.42491427]
[1641884197155,0.118831,42084.0,42078.0,0.42491427]
[1641884197556,0.059413,42082.0,42070.0,0.0473]
[1641884197759,0.538842,42080.0,42070.0,0.0473]
[1641884198556,0.32153186,42078.0,42077.0,0.60380065]
[1641884198759,0.58054457,42078.0,42077.0,0.60380065]
[1641884199719,0.7818173,42078.0,42077.0,0.60380065]
[1641884199919,0.75715971,42077.0,42076.0,0.60380065]
[1641884200121,1.32913371,42077.0,42076.0,0.60380065]
[1641884200418,1.32913371,42077.0,42071.0,1.01041635]
[1641884200419,0.37913371,42077.0,42072.0,0.12835265]
[1641884200618,0.00715971,42077.0,42072.0,0.12835265]
[1641884200819,0.059425,42075.0,42072.0,0.12835265]
[1641884201019,0.45868891,42075.0,42072.0,0.70443409]
[1641884201820,0.40868891,42075.0,42072.0,0.70443409]
[1641884202021,0.059425,42075.0,42072.0,0.70443409]
[1641884202220,0.059425,42075.0,42073.0,0.70443409]
[1641884202721,0.059425,42075.0,42073.0,0.71043409]
[1641884203355,0.059425,42075.0,42073.0,0.006]
[1641884203555,0.059425,42075.0,42074.0,1.01094899]
[1641884203757,0.4230317,42075.0,42074.0,1.01094899]
[1641884205459,0.4230317,42075.0,42074.0,1.71828287]
[1641884205659,0.4730317,42075.0,42074.0,1.71828287]
[1641884205959,0.4230317,42075.0,42074.0,1.71828287]
[1641884206160,0.059425,42075.0,42074.0,1.71828287]
[1641884206564,0.059425,42075.0,42074.0,1.01094899]
[1641884207417,0.00085509,42077.0,42074.0,1.01094899]
[1641884207615,0.00085509,42077.0,42074.0,1.36087307]
[1641884208217,0.32153186,42078.0,42075.0,1.01049057]
[1641884208417,0.32238694,42078.0,42075.0,1.01049057]
[1641884208618,0.32238694,42078.0,42076.0,0.70729652]
[1641884209222,0.34620576,42077.0,42076.0,0.70729652]
[1641884209617,0.34620576,42077.0,42075.0,0.70929652]
[1641884210117,0.73204864,42077.0,42075.0,0.70729652]
[1641884210317,0.73204864,42077.0,42076.0,0.60627904]
[1641884210516,0.18038136,42079.0,42076.0,0.60627904]
[1641884210718,0.05,42078.0,42074.0,0.70775494]
[1641884210960,0.11152836,42079.0,42075.0,0.70729652]
[1641884211160,0.34704909,42078.0,42075.0,0.70729652]
[1641884211362,0.34704909,42078.0,42077.0,0.60626736]
[1641884211562,0.6122706,42078.0,42077.0,0.60626736]
[1641884212663,0.6122706,42078.0,42076.0,0.70729652]
[1641884213267,0.6122706,42078.0,42074.0,0.60672452]
[1641884213766,0.6122706,42078.0,42077.0,0.00045721]
[1641884214167,0.26522151,42078.0,42077.0,0.00045721]
[1641884214471,0.63719551,42078.0,42077.0,0.00045721]
[1641884214713,0.98140538,42078.0,42077.0,0.00045721]
[1641884215612,0.63719551,42078.0,42077.0,0.00045721]
[1641884216012,0.98327391,42078.0,42077.0,0.00045721]
[1641884216614,1.03327391,42078.0,42077.0,0.00045721]
[1641884216913,0.63719551,42078.0,42077.0,0.00045721]
[1641884217116,0.06067329,42079.0,42077.0,0.00045721]
[1641884217313,0.11067329,42079.0,42077.0,0.00045721]
[1641884217914,0.06067329,42079.0,42077.0,0.00045721]
[1641884218563,0.06067329,42079.0,42076.0,0.6062661]
[1641884219770,0.06067329,42079.0,42077.0,0.6062661]
[1641884220667,0.00125129,42079.0,42077.0,0.6062661]
[1641884221068,0.47085506,42080.0,42077.0,0.6062661]
[1641884221468,0.47085506,42080.0,42075.0,1.50398574]
[1641884221469,0.47,42080.0,42078.0,0.6062661]
[1641884221670,0.42,42080.0,42078.0,0.6062661]
[1641884223313,0.42,42080.0,42079.0,0.25278047]
[1641884223613,0.42,42080.0,42079.0,0.25323687]
[1641884224415,0.42,42080.0,42079.0,0.85950297]
[1641884224917,0.42,42080.0,42079.0,0.6067225]
[1641884225960,0.42,42080.0,42079.0,0.0004564]
[1641884226961,0.42,42080.0,42079.0,0.6067225]
[1641884227261,0.42,42080.0,42079.0,0.0004564]
[1641884228464,0.42,42080.0,42078.0,0.70775292]
[1641884228863,0.42,42080.0,42079.0,0.60615669]
[1641884229911,0.47,42080.0,42079.0,0.60615669]
[1641884231813,0.47,42080.0,42078.0,0.0004564]
[1641884232010,0.47,42080.0,42079.0,1.71750065]
[1641884232011,0.42,42080.0,42079.0,1.71750065]
[1641884233659,0.42,42080.0,42079.0,1.71795705]
[1641884234063,0.42,42080.0,42079.0,1.01066053]
[1641884235063,0.42,42080.0,42079.0,1.01566053]
[1641884236264,0.42,42080.0,42079.0,1.01066053]
[1641884238912,0.42,42080.0,42079.0,1.01566053]
[1641884240960,0.42,42080.0,42079.0,1.07266053]
[1641884242361,0.42,42080.0,42079.0,1.01066053]
[1641884242962,0.42,42080.0,42079.0,1.05866053]
[1641884244264,0.35202369,42080.0,42079.0,1.41042564]
[1641884244713,0.35202369,42080.0,42079.0,1.51042564]
[1641884244913,0.35202369,42080.0,42079.0,1.54142564]
[1641884245717,0.00341968,42088.0,42082.0,0.70073176]
[1641884245913,0.00341968,42088.0,42079.0,1.04166053]
[1641884246314,0.00341968,42088.0,42079.0,1.81869901]
[1641884246514,0.00341968,42088.0,42082.0,0.059397]
[1641884246715,0.2887,42093.0,42080.0,0.41847245]
[1641884246913,0.31423039,42087.0,42083.0,0.74715338]
[1641884247113,0.31423039,42087.0,42083.0,0.47929546]
[1641884247314,0.31383039,42087.0,42083.0,0.47929546]
[1641884247514,0.2887,42093.0,42085.0,0.70705208]
[1641884247713,0.3387,42093.0,42085.0,0.70705208]
[1641884248562,0.33629278,42090.0,42085.0,0.70750607]
[1641884248965,0.33629278,42090.0,42085.0,0.01945399]
[1641884249265,0.42,42090.0,42085.0,0.01945399]
[1641884249662,0.42,42090.0,42086.0,1.01020413]
[1641884250162,0.71606225,42090.0,42086.0,1.01020413]
[1641884250562,0.71691723,42090.0,42086.0,1.01020413]
[1641884250965,0.42085498,42090.0,42086.0,1.02920413]
[1641884251363,0.42085498,42090.0,42087.0,1.01020413]
[1641884251563,0.42,42090.0,42087.0,1.01020413]
[1641884251762,0.42085498,42090.0,42087.0,1.01020413]
[1641884251963,0.42085498,42090.0,42086.0,0.019]
[1641884252613,0.42,42090.0,42087.0,1.01020413]
[1641884252814,0.34910668,42088.0,42085.0,0.00045399]
[1641884253014,0.34910668,42088.0,42086.0,0.029]
[1641884254216,0.671974,42087.0,42083.0,0.70705661]
[1641884254415,0.34910668,42088.0,42083.0,0.70705661]
[1641884254615,0.34910668,42088.0,42083.0,0.71895661]
[1641884255017,0.35310668,42088.0,42083.0,0.74795661]
[1641884255216,0.35396168,42088.0,42083.0,0.74795661]
[1641884255417,0.35396168,42088.0,42083.0,0.0409]
[1641884256070,0.35396168,42088.0,42083.0,0.74795661]
[1641884256267,0.34910668,42088.0,42083.0,0.71895661]
[1641884256464,0.34996168,42088.0,42083.0,0.71895661]
[1641884256666,0.34996168,42088.0,42083.0,1.77903315]
[1641884256965,0.35996168,42088.0,42083.0,1.74403315]
[1641884257165,0.35996168,42088.0,42083.0,0.73395661]
[1641884257566,0.35910668,42088.0,42083.0,0.73395661]
[1641884257766,0.35996168,42088.0,42083.0,0.73395661]
[1641884258266,0.34996168,42088.0,42083.0,0.71895661]
[1641884258466,0.34996168,42088.0,42085.0,0.00045399]
[1641884258667,0.34910668,42088.0,42085.0,0.00045399]
[1641884259068,0.35410668,42088.0,42085.0,0.01945399]
[1641884260320,0.34910668,42088.0,42086.0,0.2943345]
[1641884261017,0.36810668,42088.0,42086.0,0.2943345]
[1641884261421,0.02615649,42088.0,42086.0,0.2943345]
[1641884262019,0.02615649,42088.0,42086.0,1.00139111]
[1641884262420,0.00715649,42088.0,42086.0,1.00139111]
[1641884262620,0.33716066,42088.0,42086.0,1.00139111]
[1641884262822,0.00715649,42088.0,42086.0,1.00139111]
[1641884263022,0.01415649,42088.0,42086.0,1.01339111]
[1641884263461,0.01415649,42088.0,42087.0,0.00045318]
[1641884264264,0.00715649,42088.0,42087.0,0.00045318]
[1641884265064,0.01415649,42088.0,42087.0,0.01145318]
[1641884266265,0.00715649,42088.0,42087.0,0.00045318]
[1641884267121,0.01415649,42088.0,42087.0,1.72850797]
[1641884267515,0.01415649,42088.0,42087.0,0.71850979]
[1641884268316,0.00715649,42088.0,42087.0,0.70750979]
[1641884268716,0.00715649,42088.0,42087.0,0.00045318]
[1641884269117,0.00915649,42088.0,42087.0,0.01445318]
[1641884269321,0.00915649,42088.0,42087.0,1.73149426]
[1641884269718,0.27382182,42088.0,42087.0,1.73149426]
[1641884269918,0.00915649,42088.0,42087.0,1.73149426]
[1641884270319,0.00715649,42088.0,42087.0,1.71749426]
[1641884270518,0.00715649,42088.0,42087.0,1.81376426]
[1641884270968,0.008,42089.0,42087.0,2.08954143]
[1641884271165,0.008,42089.0,42088.0,0.76057487]
[1641884271368,0.008,42089.0,42088.0,1.18625267]
[1641884272168,0.008,42089.0,42088.0,0.79423385]
[1641884272367,0.008,42089.0,42088.0,1.80421832]
[1641884273167,0.008,42089.0,42088.0,1.82321832]
[1641884273371,0.5888,42097.0,42088.0,1.88763106]
[1641884273372,0.00085497,42091.0,42088.0,1.88763106]
[1641884273571,0.00085497,42091.0,42090.0,0.00124356]
[1641884273870,0.00085497,42091.0,42090.0,0.04854356]
[1641884274070,0.00341938,42097.0,42091.0,0.75]
[1641884274271,5.0,42105.0,42096.0,1.16243636]
[1641884274477,5.0,42105.0,42104.0,0.35219056]
[1641884274713,5.0,42105.0,42098.0,0.26851677]
[1641884275116,5.0,42105.0,42104.0,0.006]
[1641884275514,5.0,42105.0,42104.0,0.31604869]
[1641884276315,5.0,42105.0,42104.0,0.31004869]
[1641884276514,5.0,42105.0,42103.0,0.7052204]
[1641884276717,5.0,42105.0,42104.0,1.00954176]
[1641884277516,5.0,42105.0,42104.0,1.33048009]
[1641884277717,5.0,42105.0,42104.0,0.32093833]
[1641884277916,5.0,42105.0,42103.0,0.008]
[1641884278362,5.42,42105.0,42104.0,1.00954176]
[1641884278563,5.42,42105.0,42104.0,1.00991371]
[1641884278764,5.42,42105.0,42104.0,0.00037195]
[1641884279166,5.42,42105.0,42104.0,0.41037195]
[1641884280166,5.42,42105.0,42104.0,0.01037195]
[1641884280966,5.42,42105.0,42104.0,0.00037195]
[1641884281167,5.42,42105.0,42104.0,0.01137195]
[1641884281568,5.42,42105.0,42104.0,0.29255878]
[1641884281967,5.42,42105.0,42104.0,0.01137195]
[1641884282418,5.42,42105.0,42104.0,0.00037195]
[1641884283016,5.42,42105.0,42104.0,0.01337195]
[1641884283216,5.42,42105.0,42104.0,0.61337195]
[1641884283516,5.42,42105.0,42104.0,0.01337195]
[1641884284319,5.42,42105.0,42104.0,0.00037195]
[1641884284922,3.80486735,42105.0,42104.0,0.00037195]
[1641884285118,3.80486735,42105.0,42104.0,0.01537195]
[1641884286364,3.80486735,42105.0,42104.0,0.00037195]
[1641884287165,3.80486735,42105.0,42104.0,0.01737195]
[1641884288467,3.80486735,42105.0,42104.0,0.00037195]
[1641884289068,3.80486735,42105.0,42104.0,0.01737195]
[1641884290918,3.80486735,42105.0,42104.0,0.00037195]
[1641884291116,3.80486735,42105.0,42104.0,0.01537195]
[1641884292317,3.80486735,42105.0,42104.0,0.00037195]
[1641884293117,3.80486735,42105.0,42104.0,0.01737195]
[1641884294168,3.80486735,42105.0,42104.0,1.02680654]
[1641884294367,3.80486735,42105.0,42104.0,1.00980654]
[1641884294770,3.80486735,42105.0,42104.0,0.00037195]
[1641884295169,3.80486735,42105.0,42104.0,0.01637195]
[1641884295570,3.80486735,42105.0,42104.0,1.02580654]
[1641884295869,3.80486735,42105.0,42104.0,0.01637195]
[1641884296270,3.80486735,42105.0,42104.0,0.00037195]
[1641884296472,3.80486735,42105.0,42104.0,1.00980654]
[1641884296672,2.18986461,42105.0,42104.0,1.00980654]
[1641884297122,2.18986461,42105.0,42104.0,1.02680654]
[1641884298314,2.18986461,42105.0,42104.0,1.00980654]
[1641884298918,2.18986461,42105.0,42104.0,1.43455045]
[1641884299117,2.18986461,42105.0,42104.0,1.45055045]
[1641884299316,2.18986461,42105.0,42104.0,1.02580654]
[1641884300319,2.18986461,42105.0,42104.0,1.00980654]
[1641884301067,2.18986461,42105.0,42104.0,1.03480654]
[1641884302267,2.18986461,42105.0,42104.0,1.00980654]
[1641884303173,2.18986461,42105.0,42104.0,1.04180654]
[1641884304370,2.18986461,42105.0,42104.0,1.00980654]
[1641884305216,2.18986461,42105.0,42104.0,1.04080654]
[1641884306317,2.18986461,42105.0,42104.0,1.00980654]
[1641884307117,2.18986461,42105.0,42104.0,1.04380654]
[1641884308373,2.18986461,42105.0,42104.0,1.00980654]
[1641884309171,2.18986461,42105.0,42104.0,1.04080654]
[1641884310372,2.18986461,42105.0,42104.0,1.00980654]
[1641884311272,2.18986461,42105.0,42104.0,1.33598218]
[1641884312516,2.18986461,42105.0,42104.0,1.30498218]
[1641884313216,2.18986461,42105.0,42104.0,1.33298218]
[1641884314519,2.18986461,42105.0,42104.0,1.30498218]
[1641884315119,0.57494408,42105.0,42104.0,1.32198218]
[1641884316376,0.57494408,42105.0,42104.0,1.30498218]
[1641884316577,0.57494408,42105.0,42104.0,1.71318961]
[1641884316578,0.32428724,42105.0,42104.0,1.71318961]
[1641884317178,0.32428724,42105.0,42104.0,1.73218961]
[1641884317777,0.32428724,42105.0,42104.0,1.32398218]
[1641884318376,0.32428724,42105.0,42104.0,1.30498218]
[1641884318882,0.32428724,42105.0,42104.0,2.1099716]
[1641884319281,0.32428724,42105.0,42104.0,0.31654759]
[1641884320131,0.32428724,42105.0,42104.0,2.13106944]
[1641884320326,0.32428724,42105.0,42104.0,2.11006944]
[1641884321225,0.32428724,42105.0,42104.0,2.13406944]
[1641884321625,0.32428724,42105.0,42104.0,1.32898218]
[1641884322426,0.32428724,42105.0,42104.0,2.13406944]
[1641884323033,0.32428724,42105.0,42104.0,2.11006944]
[1641884323229,0.32428724,42105.0,42104.0,2.13406944]
[1641884323467,0.32428724,42105.0,42104.0,1.32898218]
[1641884324665,0.32428724,42105.0,42104.0,1.30498218]
[1641884324867,0.32428724,42105.0,42104.0,1.00980654]
[1641884325266,0.32428724,42105.0,42104.0,1.03280654]
[1641884326468,0.32428724,42105.0,42104.0,1.00980654]
[1641884327317,0.32428724,42105.0,42104.0,1.03180654]
[1641884329222,0.32428724,42105.0,42104.0,1.03980654]
[1641884330521,0.32428724,42105.0,42104.0,1.00980654]
[1641884331169,0.32428724,42105.0,42104.0,1.07180654]
[1641884332469,0.32428724,42105.0,42104.0,1.00980654]
[1641884333270,0.32428724,42105.0,42104.0,1.07180654]
[1641884334475,0.32428724,42105.0,42104.0,1.00980654]
[1641884335320,0.32428724,42105.0,42104.0,1.07180654]
[1641884336216,0.32428724,42105.0,42104.0,1.06680654]
[1641884336618,0.32428724,42105.0,42104.0,1.00480654]
[1641884337119,0.32428724,42105.0,42101.0,1.09869306]
[1641884337317,0.32428724,42105.0,42104.0,0.062]
[1641884339272,0.32428724,42105.0,42104.0,0.061]
[1641884340472,0.32428724,42105.0,42103.0,0.00040955]
[1641884341273,0.32428724,42105.0,42103.0,0.06240955]
[1641884342518,0.32428724,42105.0,42103.0,0.00040955]
[1641884343219,0.32428724,42105.0,42103.0,0.06240955]
[1641884344624,0.32428724,42105.0,42103.0,0.00040955]
[1641884345221,0.32428724,42105.0,42103.0,0.06440955]
[1641884346470,0.32428724,42105.0,42103.0,0.00040955]
[1641884346870,0.37428724,42105.0,42103.0,0.00040955]
[1641884347274,0.37428724,42105.0,42103.0,0.06240955]
[1641884347871,0.32428724,42105.0,42103.0,0.06240955]
[1641884348275,0.63426121,42105.0,42103.0,0.06240955]
[1641884348673,0.63426121,42105.0,42103.0,0.00040955]
[1641884349274,0.32428724,42105.0,42103.0,0.06140955]
[1641884350318,0.32428724,42105.0,42104.0,0.27253808]
[1641884351419,0.000769,42107.0,42104.0,0.33553808]
[1641884351618,0.000769,42107.0,42104.0,1.34491298]
[1641884351818,0.000769,42107.0,42104.0,1.0723749]
[1641884352018,0.000769,42107.0,42100.0,0.80508726]
[1641884352019,0.10121028,42105.0,42100.0,0.80508726]
[1641884352220,0.00120773,42101.0,42100.0,0.80508726]
[1641884352421,0.04850773,42101.0,42097.0,1.41320843]
[1641884353018,0.27042566,42100.0,42097.0,1.41320843]
[1641884353368,0.2473,42099.0,42097.0,1.41720843]
[1641884353569,0.366094,42099.0,42097.0,1.41720843]
[1641884353770,0.166094,42099.0,42097.0,0.004]
[1641884353972,0.371974,42098.0,42097.0,0.004]
[1641884354169,0.835756,42098.0,42097.0,0.004]
[1641884354973,1.035756,42098.0,42097.0,0.004]
[1641884355170,1.035756,42098.0,42092.0,0.27070707]
[1641884355371,0.478782,42098.0,42092.0,0.27070707]
[1641884356070,0.00076908,42097.0,42092.0,0.27070707]
[1641884356270,0.0473,42096.0,42092.0,0.27070707]
[1641884356472,0.35836571,42095.0,42092.0,0.27070707]
[1641884356770,0.41388235,42095.0,42092.0,0.27070707]
[1641884357219,0.41388235,42095.0,42092.0,0.30470707]
[1641884357419,0.41988235,42095.0,42092.0,0.30470707]
[1641884357623,0.4083625,42095.0,42092.0,0.30470707]
[1641884357818,0.056,42095.0,42092.0,0.30470707]
[1641884358018,0.36055665,42095.0,42092.0,0.30470707]
[1641884358420,0.36055665,42095.0,42094.0,0.00046527]
[1641884358621,0.35455665,42095.0,42094.0,0.00046527]
[1641884359624,0.35106885,42095.0,42094.0,0.00046527]
[1641884360026,0.35457787,42095.0,42094.0,0.00046527]
[1641884360426,0.35415474,42095.0,42094.0,0.00046527]
[1641884360626,0.35819517,42095.0,42094.0,0.00046527]
[1641884361287,0.40119517,42095.0,42094.0,0.00746527]
[1641884362485,0.40119517,42095.0,42094.0,0.00046527]
[1641884362486,0.35819517,42095.0,42094.0,0.00046527]
[1641884363285,0.40219517,42095.0,42094.0,0.00746527]
[1641884363485,0.40219517,42095.0,42094.0,0.007]
[1641884363887,0.044,42095.0,42094.0,0.007]
[1641884364726,0.00076909,42097.0,42090.0,0.33249483]
[1641884365227,0.04476909,42097.0,42090.0,0.33849483]
[1641884365625,0.044,42097.0,42090.0,0.33849483]
[1641884365825,0.0007691,42096.0,42090.0,0.33849483]
[1641884366527,0.0007691,42096.0,42090.0,0.33249483]
[1641884366727,0.30374772,42097.0,42090.0,0.00037222]
[1641884366932,0.0007691,42095.0,42090.0,0.00037222]
[1641884367329,0.0007691,42095.0,42090.0,0.00637222]
[1641884367532,0.0007691,42095.0,42091.0,0.83659216]
[1641884367933,0.39674772,42097.0,42091.0,0.83659216]
[1641884368230,0.0007691,42095.0,42091.0,1.09168762]
[1641884368469,0.0007691,42095.0,42092.0,0.00037302]
[1641884368670,0.0007691,42095.0,42092.0,0.80479595]
[1641884369070,0.47051616,42096.0,42092.0,0.80479595]
[1641884369269,0.042,42095.0,42093.0,0.83659216]
[1641884370073,0.092,42095.0,42093.0,0.83659216]
[1641884370772,0.05,42095.0,42092.0,1.64138811]
[1641884370971,0.00076909,42096.0,42092.0,1.64138811]
[1641884371171,0.00076909,42096.0,42093.0,0.83659216]
[1641884371372,0.01,42095.0,42093.0,0.83659216]
[1641884371771,0.01,42095.0,42094.0,0.83659216]
[1641884372620,0.00076909,42097.0,42094.0,0.83659216]
[1641884372820,0.409915,42098.0,42094.0,0.83659216]
[1641884373024,0.00076909,42097.0,42094.0,0.83659216]
[1641884373223,0.2978186,42097.0,42094.0,0.83659216]
[1641884373421,0.2978186,42097.0,42095.0,0.83659216]
[1641884373825,0.2978186,42097.0,42096.0,0.83659216]
[1641884374020,0.65953484,42097.0,42096.0,0.83659216]
[1641884375226,0.75683484,42097.0,42096.0,0.83659216]
[1641884375427,1.51007919,42097.0,42096.0,0.83859216]
[1641884375628,2.15182919,42097.0,42096.0,0.83859216]
[1641884376274,2.14682919,42097.0,42096.0,0.83859216]
[1641884376474,2.14682919,42097.0,42096.0,0.002]
[1641884376674,1.86607919,42097.0,42094.0,0.00037222]
[1641884376876,0.591,42095.0,42094.0,0.00037222]
[1641884377078,1.010274,42095.0,42094.0,0.00037222]
[1641884377476,1.37245071,42095.0,42094.0,0.00037222]
[1641884377878,1.63573696,42095.0,42094.0,0.00037222]
[1641884378483,1.63573696,42095.0,42088.0,0.27878944]
[1641884378684,1.00047671,42095.0,42088.0,0.27878944]
[1641884379385,1.00947671,42095.0,42088.0,0.29278944]
[1641884379626,1.00947671,42095.0,42092.0,0.26622662]
[1641884379821,0.0563,42095.0,42092.0,0.26622662]
[1641884380620,0.0473,42095.0,42092.0,0.26622662]
[1641884381525,0.0583,42095.0,42092.0,0.26622662]
[1641884382625,0.0007691,42096.0,42092.0,0.26622662]
[1641884382824,0.0007691,42096.0,42093.0,0.41267088]
[1641884383023,0.0007691,42096.0,42092.0,0.34282778]
[1641884383223,0.0007691,42096.0,42093.0,0.41267088]
[1641884383473,1.4826,42107.0,42093.0,0.42167088]
[1641884383671,1.4826,42107.0,42105.0,0.30734987]
[1641884383871,0.008,42109.0,42105.0,0.30734987]
[1641884384672,0.008,42109.0,42106.0,0.27094167]
[1641884384873,0.00876899,42109.0,42106.0,0.27094167]
[1641884385071,0.00876899,42109.0,42105.0,0.30734987]
[1641884385270,0.00876899,42109.0,42106.0,0.002]
[1641884386076,0.008,42109.0,42106.0,0.002]
[1641884386475,0.371974,42108.0,42106.0,0.002]
[1641884386674,0.431359,42108.0,42100.0,0.60232917]
[1641884386875,0.431359,42108.0,42099.0,0.60232917]
[1641884386876,0.059385,42108.0,42099.0,0.60232917]
[1641884387320,0.000769,42106.0,42100.0,0.30326839]
[1641884387518,0.31126738,42103.0,42100.0,0.30326839]
[1641884387719,0.000769,42106.0,42100.0,0.30326839]
[1641884388318,0.059385,42108.0,42100.0,0.30326839]
[1641884388523,0.059385,42108.0,42101.0,0.00047229]
[1641884388524,0.00076901,42105.0,42101.0,0.00047229]
[1641884389322,0.00076901,42105.0,42101.0,0.00347229]
[1641884389522,0.059385,42108.0,42101.0,0.00347229]
[1641884389724,0.00076901,42105.0,42101.0,0.00347229]
[1641884390124,0.34185542,42105.0,42101.0,0.00347229]
[1641884390625,0.34185542,42105.0,42101.0,0.00047229]
[1641884391474,0.34185542,42105.0,42101.0,0.00247229]
[1641884391874,0.34108641,42105.0,42101.0,0.00247229]
[1641884392076,0.34185542,42105.0,42101.0,0.00247229]
[1641884393078,0.34108641,42105.0,42101.0,0.00247229]
[1641884393378,0.34185542,42105.0,42101.0,0.00247229]
[1641884393577,0.34185542,42105.0,42099.0,0.26150612]
[1641884393779,0.00076901,42105.0,42099.0,0.26150612]
[1641884394379,0.059385,42108.0,42099.0,0.26150612]
[1641884394621,0.00076902,42104.0,42099.0,0.26150612]
[1641884395221,0.00076902,42104.0,42103.0,0.31154229]
[1641884395620,0.008,42109.0,42103.0,0.31154229]
[1641884395821,0.00076901,42106.0,42103.0,0.31154229]
[1641884396823,0.008,42109.0,42103.0,0.31154229]
[1641884397022,0.000769,42107.0,42103.0,0.31154229]
[1641884397423,0.000769,42107.0,42103.0,0.31454229]
[1641884397623,0.000769,42107.0,42104.0,0.83688128]
[1641884397824,0.000769,42107.0,42105.0,0.40735756]
[1641884398023,0.008,42109.0,42104.0,1.2476635]
[1641884398225,0.00076899,42108.0,42104.0,0.83688128]
[1641884398473,0.00076899,42108.0,42105.0,0.00054849]
[1641884398773,0.00076899,42108.0,42107.0,0.24280527]
[1641884399172,0.008,42109.0,42107.0,0.66917175]
[1641884399372,0.008,42109.0,42107.0,0.24480527]
[1641884399570,0.008,42109.0,42107.0,0.002]
[1641884400174,0.008,42109.0,42107.0,0.12072658]
[1641884400375,0.008,42109.0,42108.0,1.70258712]
[1641884400577,0.008,42109.0,42108.0,2.05129241]
[1641884400972,0.008,42109.0,42108.0,0.85129241]
[1641884401173,0.008,42109.0,42108.0,1.20316431]
[1641884401372,0.008,42109.0,42108.0,2.05204559]
[1641884401578,0.8725,42121.0,42108.0,2.05204559]
[1641884401773,0.00307539,42117.0,42112.0,0.05936169]
[1641884401973,0.00307539,42117.0,42113.0,0.0473]
[1641884402722,0.118741,42119.0,42116.0,0.60089543]
[1641884403121,0.46773874,42119.0,42116.0,0.60089543]
[1641884403322,0.46773874,42119.0,42115.0,0.60089543]
[1641884403521,0.059364,42118.0,42115.0,0.60135994]
[1641884404023,0.3489,42121.0,42115.0,0.60135994]
[1641884404228,0.051,42121.0,42116.0,0.60089543]
[1641884404423,0.001,42121.0,42116.0,0.60089543]
[1641884405026,0.001,42121.0,42119.0,0.60089543]
[1641884405425,0.00185473,42121.0,42119.0,0.60089543]
[1641884406280,0.001,42121.0,42119.0,0.60089543]
[1641884407282,0.001,42121.0,42120.0,0.27446192]
[1641884408384,0.001,42121.0,42120.0,0.27492392]
[1641884409626,0.07297236,42121.0,42120.0,0.27692392]
[1641884409819,0.12297236,42121.0,42120.0,0.27692392]
[1641884410419,0.12297236,42121.0,42120.0,0.73301343]